bitfinex/quotes_BTCUSD_20241021
["timestamp","ask_amount","ask_price","bid_price","bid_amount"]
[1729533380750,0.002,67675.0,67674.0,0.190154]
[1729533380950,0.001,67675.0,67674.0,0.190154]
[1729533381705,0.001,67675.0,67674.0,0.188154]
[1729533382225,0.002,67675.0,67674.0,0.191154]
[1729533387528,0.04817714,67675.0,67674.0,0.191154]
[1729533387963,0.002,67675.0,67674.0,0.191154]
[1729533388163,0.04817673,67675.0,67674.0,0.191154]
[1729533389254,0.05770101,67675.0,67674.0,0.191154]
[1729533389665,0.04717673,67675.0,67674.0,0.188154]
[1729533390020,0.04617673,67675.0,67674.0,0.187154]
[1729533390454,0.04617673,67682.0,67674.0,0.187154]
[1729533390694,0.001,67675.0,67674.0,0.195154]
[1729533390895,0.04617673,67680.0,67674.0,0.187154]
[1729533391150,0.147749,67682.0,67681.0,0.005]
[1729533391275,0.19394012,67682.0,67681.0,0.005]
[1729533392290,0.04619112,67682.0,67681.0,0.005]
[1729533393262,0.04619112,67682.0,67681.0,0.006]
[1729533393451,0.04619112,67682.0,67681.0,0.007]
[1729533393653,0.19394012,67682.0,67681.0,0.007]
[1729533393799,0.04619112,67682.0,67681.0,0.007]
[1729533394199,0.19394012,67682.0,67681.0,0.007]
[1729533394400,0.04619112,67682.0,67681.0,0.006]
[1729533394669,0.04619112,67682.0,67681.0,0.005]
[1729533394804,0.04619112,67682.0,67681.0,0.0808]
[1729533395000,0.02314855,67684.0,67682.0,0.01]
[1729533395206,0.04619055,67683.0,67682.0,0.01]
[1729533396350,0.04619055,67683.0,67682.0,0.011]
[1729533396774,0.04619055,67683.0,67682.0,0.1096]
[1729533396972,0.000827,67688.0,67685.0,0.1738]
[1729533397178,0.000827,67688.0,67686.0,0.0752]
[1729533397380,0.000827,67688.0,67687.0,0.01]
[1729533397591,0.000827,67688.0,67687.0,0.1823]
[1729533397792,0.000827,67688.0,67687.0,0.330038]
[1729533398874,0.000827,67688.0,67687.0,0.338038]
[1729533399087,0.001827,67688.0,67687.0,0.338038]
[1729533399667,0.002827,67688.0,67687.0,0.1953]
[1729533400323,0.001827,67688.0,67687.0,0.1903]
[1729533400736,0.24500118,67699.0,67693.0,0.01]
[1729533400985,0.04613767,67698.0,67693.0,0.01]
[1729533401156,0.04613767,67698.0,67694.0,0.0818]
[1729533401362,0.04613767,67697.0,67694.0,0.0818]
[1729533401561,0.147714,67699.0,67694.0,0.0818]
[1729533401823,0.000827,67701.0,67694.0,0.0818]
[1729533401824,0.04613767,67698.0,67694.0,0.0818]
[1729533402026,0.04613767,67697.0,67694.0,0.0818]
[1729533402158,0.04613767,67696.0,67694.0,0.0818]
[1729533402375,0.04613767,67695.0,67694.0,0.0818]
[1729533403374,0.04613767,67698.0,67694.0,0.0818]
[1729533403585,0.04613767,67697.0,67694.0,0.0828]
[1729533403812,0.04613767,67696.0,67694.0,0.0828]
[1729533404012,0.04613767,67695.0,67694.0,0.0828]
[1729533404209,0.04713767,67698.0,67694.0,0.0828]
[1729533404417,0.04613767,67697.0,67694.0,0.0818]
[1729533405137,0.04613767,67697.0,67694.0,0.0828]
[1729533405536,0.04613767,67697.0,67694.0,0.0818]
[1729533406120,0.001,67697.0,67694.0,0.0818]
[1729533406322,0.04613767,67696.0,67694.0,0.0818]
[1729533407203,0.147715,67698.0,67694.0,0.0818]
[1729533407404,0.05012028,67697.0,67694.0,0.0818]
[1729533407612,0.04612028,67696.0,67694.0,0.0818]
[1729533408016,0.04612028,67695.0,67694.0,0.0818]
[1729533408429,0.04612028,67696.0,67694.0,0.0818]
[1729533408627,0.04612028,67695.0,67694.0,0.0818]
[1729533408847,0.04712028,67696.0,67694.0,0.0818]
[1729533409058,0.04612028,67695.0,67694.0,0.0818]
[1729533410893,0.04612028,67696.0,67694.0,0.0818]
[1729533412222,0.04712028,67696.0,67694.0,0.0818]
[1729533412443,0.001,67696.0,67694.0,0.0818]
[1729533413153,0.002,67696.0,67694.0,0.0818]
[1729533414970,0.147721,67695.0,67694.0,0.0818]
[1729533415436,0.002,67696.0,67694.0,0.0818]
[1729533415702,0.14972,67696.0,67694.0,0.0818]
[1729533415927,0.00967169,67695.0,67694.0,0.0818]
[1729533418074,0.147721,67695.0,67694.0,0.0818]
[1729533418275,0.055785,67695.0,67694.0,0.0818]
[1729533418798,0.205506,67695.0,67694.0,0.0818]
[1729533419260,0.059785,67695.0,67694.0,0.0818]
[1729533420454,0.207506,67695.0,67694.0,0.083454]
[1729533421849,0.059785,67695.0,67694.0,0.083454]
[1729533422298,0.01367169,67695.0,67694.0,0.182654]
[1729533424819,0.05980484,67695.0,67694.0,0.182654]
[1729533436198,0.05980484,67695.0,67694.0,0.177654]
[1729533440076,0.05980484,67695.0,67694.0,0.078454]
[1729533441359,0.05980484,67695.0,67694.0,0.001654]
[1729533447816,0.20752584,67695.0,67694.0,0.001654]
[1729533449008,0.05980484,67695.0,67694.0,0.001654]
[1729533454667,0.05980484,67695.0,67694.0,0.175454]
[1729533454858,0.05980484,67695.0,67694.0,0.2319994]
[1729533455083,0.004,67695.0,67694.0,0.213454]
[1729533455288,0.004,67695.0,67694.0,0.3350729]
[1729533455476,0.002,67695.0,67694.0,0.361177]
[1729533455657,0.000827,67697.0,67696.0,0.028]
[1729533455840,0.000827,67697.0,67696.0,0.2113]
[1729533457281,0.001827,67697.0,67696.0,0.2203]
[1729533458843,0.002827,67697.0,67696.0,0.2293]
[1729533460191,0.002827,67697.0,67696.0,0.377019]
[1729533461190,0.002827,67697.0,67696.0,0.2293]
[1729533461347,0.002827,67697.0,67696.0,0.377019]
[1729533463791,0.002827,67697.0,67696.0,0.198719]
[1729533464031,0.51934197,67697.0,67696.0,0.018]
[1729533464233,0.62911173,67697.0,67696.0,0.018]
[1729533464651,0.69556657,67697.0,67696.0,0.018]
[1729533464856,0.69456657,67697.0,67694.0,0.001654]
[1729533465029,0.247721,67695.0,67694.0,0.001654]
[1729533465224,0.44281897,67695.0,67694.0,0.001654]
[1729533465425,0.45258873,67695.0,67694.0,0.001654]
[1729533466405,0.45558873,67695.0,67694.0,0.001654]
[1729533468259,0.45641573,67695.0,67694.0,0.001654]
[1729533468661,0.45841573,67695.0,67694.0,0.001654]
[1729533470409,0.45841573,67695.0,67678.0,0.01]
[1729533470410,0.147756,67679.0,67678.0,0.01]
[1729533470836,0.15737985,67679.0,67678.0,0.005]
[1729533471481,0.15737985,67679.0,67678.0,0.01]
[1729533472079,0.15737985,67679.0,67678.0,0.011]
[1729533473354,0.15737985,67679.0,67678.0,0.012]
[1729533473760,0.15737985,67679.0,67678.0,0.002]
[1729533473966,0.15737985,67679.0,67678.0,0.012]
[1729533474170,0.15737985,67679.0,67678.0,0.002]
[1729533475855,0.00962385,67679.0,67678.0,0.1068]
[1729533476028,0.2220298,67690.0,67678.0,0.336257]
[1729533476225,0.00952094,67679.0,67678.0,0.1885]
[1729533476537,0.147736,67688.0,67678.0,0.1885]
[1729533476733,0.3697618,67690.0,67678.0,0.1875]
[1729533477027,0.00952094,67687.0,67683.0,0.01]
[1729533477235,0.147737,67688.0,67683.0,0.01]
[1729533477432,0.00952094,67689.0,67683.0,0.01]
[1729533477637,0.2220298,67690.0,67683.0,0.01]
[1729533477857,0.00952094,67687.0,67683.0,0.01]
[1729533478062,0.001,67688.0,67683.0,0.01]
[1729533478467,0.148736,67688.0,67683.0,0.01]
[1729533478622,0.00952094,67687.0,67683.0,0.01]
[1729533479274,0.002,67689.0,67683.0,0.01]
[1729533479474,0.00952094,67686.0,67683.0,0.01]
[1729533479690,0.002,67688.0,67683.0,0.01]
[1729533479893,0.00952094,67685.0,67683.0,0.011654]
[1729533480215,0.002,67688.0,67683.0,0.011654]
[1729533480394,0.00952094,67684.0,67683.0,0.011654]
[1729533480802,0.002,67688.0,67683.0,0.011654]
[1729533481115,0.00952094,67684.0,67683.0,0.086854]
[1729533481348,0.147728,67692.0,67683.0,0.086854]
[1729533481478,0.29668715,67692.0,67683.0,0.086854]
[1729533481706,0.001,67684.0,67683.0,0.087854]
[1729533482151,0.001,67684.0,67683.0,0.086854]
[1729533482532,0.001,67684.0,67683.0,0.085854]
[1729533482904,0.01059384,67684.0,67683.0,0.085854]
[1729533483128,0.001,67684.0,67683.0,0.243601]
[1729533483350,0.001,67684.0,67683.0,0.341701]
[1729533485057,0.002,67684.0,67683.0,0.347701]
[1729533485801,0.3697568,67693.0,67685.0,0.147741]
[1729533485802,0.2220298,67693.0,67685.0,0.147741]
[1729533486012,0.2220298,67693.0,67692.0,0.01]
[1729533486428,0.148549,67695.0,67692.0,0.01]
[1729533486685,0.148549,67695.0,67694.0,0.01]
[1729533487754,0.000827,67695.0,67694.0,0.01]
[1729533488707,0.002827,67695.0,67694.0,0.01]
[1729533489195,0.150548,67695.0,67694.0,0.01]
[1729533489430,0.002827,67695.0,67694.0,0.01]
[1729533490774,0.01245183,67695.0,67694.0,0.01]
[1729533491716,0.01245183,67695.0,67694.0,0.1082]
[1729533492179,0.002827,67695.0,67694.0,0.255923]
[1729533492418,0.001827,67695.0,67694.0,0.1082]
[1729533492881,0.002827,67695.0,67694.0,0.336023]
[1729533493113,0.001827,67695.0,67694.0,0.336023]
[1729533493317,0.002827,67695.0,67694.0,0.336023]
[1729533493966,0.001827,67695.0,67694.0,0.336023]
[1729533494397,0.001827,67695.0,67694.0,0.339023]
[1729533494570,0.000827,67695.0,67694.0,0.336023]
[1729533494819,0.000827,67695.0,67694.0,0.353023]
[1729533494996,0.002827,67695.0,67694.0,0.353023]
[1729533499368,0.002827,67695.0,67694.0,0.2053]
[1729533499507,0.002827,67695.0,67694.0,0.353023]
[1729533503638,0.002827,67695.0,67694.0,0.354677]
[1729533503846,0.002827,67695.0,67694.0,0.382677]
[1729533509835,0.002827,67695.0,67694.0,0.028654]
[1729533510445,0.01273801,67695.0,67694.0,0.028654]
[1729533514163,0.002827,67695.0,67694.0,0.028654]
[1729533515008,0.01273801,67695.0,67694.0,0.028654]
[1729533515185,0.002827,67695.0,67694.0,0.028654]
[1729533515394,0.01273801,67695.0,67694.0,0.028654]
[1729533515594,0.002827,67695.0,67694.0,0.028654]
[1729533515743,0.01273801,67695.0,67694.0,0.028654]
[1729533515952,0.002827,67695.0,67694.0,0.028654]
[1729533516146,0.01273801,67695.0,67694.0,0.028654]
[1729533516375,0.002827,67695.0,67694.0,0.028654]
[1729533516579,0.01273801,67695.0,67694.0,0.028654]
[1729533516782,0.002827,67695.0,67694.0,0.028654]
[1729533516997,0.01273801,67695.0,67694.0,0.028654]
[1729533517199,0.002827,67695.0,67694.0,0.028654]
[1729533517402,0.01273801,67695.0,67694.0,0.028654]
[1729533517604,0.002827,67695.0,67694.0,0.028654]
[1729533517805,0.01273801,67695.0,67694.0,0.028654]
[1729533518003,0.002827,67695.0,67694.0,0.028654]
[1729533518206,0.01271304,67695.0,67694.0,0.028654]
[1729533522875,0.43705761,67695.0,67694.0,0.018654]
[1729533523539,0.68111526,67695.0,67694.0,0.018654]
[1729533523768,0.67911526,67695.0,67694.0,0.001654]
[1729533523971,0.68011526,67695.0,67694.0,0.007654]
[1729533524172,0.68111526,67695.0,67694.0,0.015654]
[1729533524380,0.68011526,67695.0,67694.0,0.009654]
[1729533524587,0.67911526,67695.0,67694.0,0.002654]
[1729533524794,0.68711526,67695.0,67694.0,0.002654]
[1729533526069,0.69411526,67695.0,67694.0,0.003654]
[1729533526287,0.69411526,67695.0,67694.0,0.002654]
[1729533526288,0.68611526,67695.0,67694.0,0.002654]
[1729533526502,0.68611526,67695.0,67694.0,0.001654]
[1729533526710,0.69311526,67695.0,67694.0,0.001654]
[1729533527130,0.69211526,67695.0,67694.0,0.002654]
[1729533527334,0.68511526,67695.0,67694.0,0.002654]
[1729533527752,0.69311526,67695.0,67694.0,0.003654]
[1729533528311,0.70011526,67695.0,67694.0,0.003654]
[1729533528993,1.01914506,67695.0,67694.0,0.001654]
[1729533529201,1.01914506,67695.0,67678.0,0.2220298]
[1729533529202,0.147745,67684.0,67678.0,0.2220298]
[1729533529398,0.147756,67679.0,67678.0,0.2220298]
[1729533529658,0.147756,67679.0,67674.0,0.001654]
[1729533529659,0.19512357,67679.0,67674.0,0.001654]
[1729533529794,0.229765,67675.0,67674.0,0.001654]
[1729533529999,0.42488857,67675.0,67674.0,0.001654]
[1729533530427,0.4344903,67675.0,67674.0,0.001654]
[1729533531260,0.4364903,67675.0,67674.0,0.021654]
[1729533532644,0.4344903,67675.0,67674.0,0.021654]
[1729533532910,0.4454903,67675.0,67674.0,0.021654]
[1729533533154,0.4344903,67675.0,67674.0,0.021654]
[1729533533607,0.4444903,67675.0,67674.0,0.021654]
[1729533533755,0.4534903,67675.0,67674.0,0.021654]
[1729533533955,0.4624903,67675.0,67674.0,0.021654]
[1729533534331,0.41632588,67675.0,67674.0,0.021654]
[1729533534550,0.51632588,67675.0,67674.0,0.021654]
[1729533535130,0.56430768,67675.0,67674.0,0.021654]
[1729533535330,0.51632588,67675.0,67674.0,0.021654]
[1729533537751,0.005,67673.0,67670.0,0.001654]
[1729533537947,0.247773,67671.0,67670.0,0.001654]
[1729533538160,0.40617131,67671.0,67670.0,0.001654]
[1729533539357,0.41217131,67671.0,67670.0,0.001654]
[1729533541054,0.61529777,67671.0,67670.0,0.001654]
[1729533541569,0.62129777,67671.0,67670.0,0.002654]
[1729533542522,0.62329777,67671.0,67670.0,0.002654]
[1729533542782,0.63329777,67671.0,67670.0,0.002654]
[1729533543008,2.24694537,67671.0,67670.0,0.002654]
[1729533543967,2.24694537,67671.0,67665.0,0.001652]
[1729533543968,0.252784,67666.0,67665.0,0.001652]
[1729533544207,0.40674315,67666.0,67665.0,0.001652]
[1729533544421,0.4160233,67666.0,67665.0,0.001652]
[1729533544646,0.4110233,67666.0,67665.0,0.001652]
[1729533544874,0.61330227,67666.0,67665.0,0.001652]
[1729533547029,0.65920359,67666.0,67665.0,0.001652]
[1729533548482,0.66920359,67666.0,67665.0,0.001652]
[1729533549156,0.65920359,67666.0,67665.0,0.001652]
[1729533549614,0.66820359,67666.0,67665.0,0.001652]
[1729533550064,0.67620359,67666.0,67665.0,0.001652]
[1729533551201,0.68568847,67666.0,67665.0,0.001652]
[1729533552810,0.66597589,67666.0,67665.0,0.001652]
[1729533553025,0.66797589,67666.0,67665.0,0.001652]
[1729533553243,0.66597589,67666.0,67665.0,0.001652]
[1729533554994,0.66197589,67666.0,67665.0,0.001652]
[1729533555233,0.67097589,67666.0,67665.0,0.001652]
[1729533555449,0.67079809,67666.0,67665.0,0.001652]
[1729533557812,0.65149101,67666.0,67665.0,0.078852]
[1729533558057,0.65149101,67666.0,67665.0,0.001652]
[1729533558375,0.64249101,67666.0,67665.0,0.001652]
[1729533559121,0.6844696,67666.0,67665.0,0.001652]
[1729533559492,0.005,67660.0,67645.0,0.0823]
[1729533559693,0.005,67660.0,67639.0,0.0001778]
[1729533559694,0.2526392,67651.0,67646.0,0.2220298]
[1729533559915,0.29854052,67651.0,67646.0,0.2220298]
[1729533560284,0.30762496,67651.0,67646.0,0.2220298]
[1729533560437,0.30762496,67651.0,67641.0,0.077]
[1729533560898,0.35696346,67651.0,67641.0,0.077]
[1729533561099,0.30762496,67651.0,67641.0,0.077]
[1729533561512,0.147854,67634.0,67633.0,0.079]
[1729533561731,0.29681315,67634.0,67633.0,0.079]
[1729533561915,0.35191768,67634.0,67633.0,0.079]
[1729533563288,0.29573,67630.0,67625.0,0.005]
[1729533563489,0.147872,67626.0,67625.0,0.005]
[1729533563721,0.147874,67625.0,67624.0,0.0988778]
[1729533563869,0.05505061,67625.0,67624.0,0.1899778]
[1729533564075,0.20292461,67625.0,67624.0,0.1899778]
[1729533564270,0.20292461,67625.0,67624.0,0.1799778]
[1729533564559,0.20292461,67625.0,67624.0,0.1899778]
[1729533564901,0.20292461,67625.0,67624.0,0.1799778]
[1729533565094,0.05505061,67625.0,67624.0,0.1899778]
[1729533565428,0.20292461,67625.0,67624.0,0.1899778]
[1729533565853,0.20292461,67625.0,67624.0,0.1799778]
[1729533566198,0.20292461,67625.0,67624.0,0.1798]
[1729533566564,0.35188376,67625.0,67624.0,0.1798]
[1729533567174,0.35288376,67625.0,67624.0,0.001]
[1729533567368,0.45288376,67625.0,67624.0,0.001]
[1729533567570,0.50222226,67625.0,67624.0,0.001]
[1729533567802,0.45388376,67625.0,67624.0,0.001]
[1729533567983,0.59481148,67625.0,67624.0,0.0826]
[1729533568186,0.59381148,67625.0,67624.0,0.0816]
[1729533568397,0.59281148,67625.0,67624.0,0.0826]
[1729533568602,0.59581148,67625.0,67624.0,0.0826]
[1729533569027,0.59681148,67625.0,67624.0,0.0826]
[1729533569435,0.59681148,67625.0,67624.0,0.0816]
[1729533570046,0.59481148,67625.0,67624.0,0.0806]
[1729533573091,0.59481148,67625.0,67624.0,0.082254]
[1729533573932,0.49481148,67625.0,67624.0,0.179754]
[1729533574144,0.44874286,67625.0,67624.0,0.179754]
[1729533574347,0.44574286,67625.0,67624.0,0.179754]
[1729533574759,0.44774286,67625.0,67624.0,0.179754]
[1729533575635,0.45074286,67625.0,67624.0,0.179754]
[1729533576048,0.30881514,67625.0,67624.0,0.179754]
[1729533576355,0.30581514,67625.0,67624.0,0.179754]
[1729533576590,0.15685599,67625.0,67624.0,0.180754]
[1729533577732,0.00898199,67625.0,67624.0,0.1809318]
[1729533578074,0.147872,67626.0,67624.0,0.1809318]
[1729533578285,0.15639063,67625.0,67624.0,0.1809318]
[1729533578813,0.00851663,67625.0,67624.0,0.1809318]
[1729533579026,0.00851663,67625.0,67624.0,0.1799318]
[1729533579233,0.147872,67626.0,67624.0,0.1799318]
[1729533579430,0.00852804,67625.0,67624.0,0.1809318]
[1729533579641,0.15640204,67625.0,67624.0,0.1809318]
[1729533580743,0.30536119,67625.0,67624.0,0.180754]
[1729533580940,0.35136689,67625.0,67624.0,0.002654]
[1729533582856,0.35136689,67625.0,67624.0,0.001654]
[1729533583086,0.35636689,67625.0,67624.0,0.001654]
[1729533583786,0.36136689,67625.0,67624.0,0.001654]
[1729533587507,0.47255961,67625.0,67624.0,0.001654]
[1729533591693,0.46755961,67625.0,67624.0,0.001654]
[1729533592876,0.46255961,67625.0,67624.0,0.001654]
[1729533593203,0.1,67624.0,67611.0,0.005]
[1729533593428,0.147898,67614.0,67613.0,0.0786]
[1729533593647,0.1939037,67614.0,67613.0,0.0786]
[1729533594063,0.20235577,67614.0,67613.0,0.0786]
[1729533595813,0.20335577,67614.0,67613.0,0.0786]
[1729533596030,0.20435577,67614.0,67613.0,0.0806]
[1729533597568,0.35331492,67614.0,67613.0,0.002]
[1729533598425,0.147907,67610.0,67609.0,0.005]
[1729533598637,0.147907,67610.0,67609.0,0.0051778]
[1729533598638,0.1939127,67610.0,67609.0,0.0051778]
[1729533598844,0.1939127,67610.0,67609.0,0.1036778]
[1729533599061,0.20236477,67610.0,67609.0,0.1086778]
[1729533600978,0.20336477,67610.0,67609.0,0.1086778]
[1729533602051,0.20436477,67610.0,67609.0,0.1086778]
[1729533602837,0.05645777,67610.0,67609.0,0.1856778]
[1729533603266,0.20541692,67610.0,67609.0,0.1855]
[1729533603499,0.35332392,67610.0,67609.0,0.1855]
[1729533603741,0.35332392,67610.0,67609.0,0.1805]
[1729533605780,0.35232392,67610.0,67609.0,0.1805]
[1729533606449,0.35132392,67610.0,67609.0,0.1805]
[1729533607417,0.35232392,67610.0,67609.0,0.1805]
[1729533607899,0.35332392,67610.0,67609.0,0.1805]
[1729533608103,0.35332392,67610.0,67609.0,0.182154]
[1729533609240,0.35332392,67610.0,67609.0,0.177154]
[1729533609462,0.37649635,67610.0,67609.0,0.182154]
[1729533610155,0.37649635,67610.0,67609.0,0.177154]
[1729533610398,0.37649635,67610.0,67609.0,0.182154]
[1729533611100,0.47649635,67610.0,67609.0,0.001654]
[1729533611324,0.52583485,67610.0,67609.0,0.001654]
[1729533611536,0.59218721,67610.0,67609.0,0.001654]
[1729533611819,0.58736501,67610.0,67609.0,0.001654]
[1729533612319,0.5748571,67610.0,67609.0,0.001654]
[1729533612551,0.68570021,67610.0,67609.0,0.001654]
[1729533612783,0.68470021,67610.0,67609.0,0.001654]
[1729533612989,0.69570021,67610.0,67609.0,0.001654]
[1729533613378,0.69470021,67610.0,67609.0,0.001654]
[1729533613840,0.7161632,67610.0,67609.0,0.001654]
[1729533614089,0.2527352,67607.0,67602.0,0.001672]
[1729533614332,0.5452122,67607.0,67602.0,0.001672]
[1729533614830,0.5472122,67607.0,67602.0,0.001672]
[1729533615073,0.0973,67601.0,67597.0,0.001672]
[1729533615288,0.0973,67601.0,67570.0,0.005]
[1729533615289,0.147966,67583.0,67581.0,0.2220298]
[1729533615527,0.1939717,67583.0,67581.0,0.2220298]
[1729533615760,0.1939717,67583.0,67579.0,0.005]
[1729533615994,0.1939717,67583.0,67580.0,0.0001778]
[1729533616974,0.154966,67583.0,67580.0,0.0001778]
[1729533617217,0.147966,67583.0,67580.0,0.0001778]
[1729533617663,0.1582661,67583.0,67580.0,0.0001778]
[1729533620310,0.1602661,67583.0,67580.0,0.0001778]
[1729533622433,0.30922525,67583.0,67576.0,0.0784778]
[1729533622855,0.30922525,67583.0,67579.0,0.005]
[1729533623310,0.30722525,67583.0,67579.0,0.005]
[1729533623561,0.30522525,67583.0,67579.0,0.005]
[1729533623792,0.31722525,67583.0,67579.0,0.005]
[1729533623993,0.31122525,67583.0,67576.0,0.0884778]
[1729533624203,0.30522525,67583.0,67579.0,0.005]
[1729533624410,0.30822525,67583.0,67579.0,0.005]
[1729533624662,0.14799,67572.0,67571.0,0.0762778]
[1729533624889,0.148003,67566.0,67565.0,0.005]
[1729533625098,0.148005,67565.0,67564.0,0.0823778]
[1729533625349,0.148005,67565.0,67564.0,0.0923778]
[1729533625553,0.15579042,67565.0,67564.0,0.0823778]
[1729533626245,0.15579042,67565.0,67564.0,0.0822]
[1729533626483,0.30474957,67565.0,67564.0,0.0822]
[1729533628179,0.30474957,67565.0,67563.0,0.005]
[1729533628180,0.15674457,67565.0,67563.0,0.005]
[1729533628385,0.15674457,67565.0,67556.0,0.0018518]
[1729533628386,0.14895915,67564.0,67556.0,0.0018518]
[1729533628612,0.148023,67557.0,67556.0,0.0018518]
[1729533629279,0.30445334,67557.0,67556.0,0.001674]
[1729533630198,0.40545334,67557.0,67556.0,0.001674]
[1729533630653,0.40645334,67557.0,67556.0,0.001674]
[1729533631728,0.40545334,67557.0,67556.0,0.001674]
[1729533631938,0.40445334,67557.0,67556.0,0.001674]
[1729533633055,0.45033497,67557.0,67556.0,0.001674]
[1729533633272,0.45233497,67557.0,67556.0,0.001674]
[1729533633509,0.45333497,67557.0,67556.0,0.001674]
[1729533633716,0.45233497,67557.0,67556.0,0.001674]
[1729533634348,0.40645334,67557.0,67556.0,0.001674]
[1729533634525,0.45629882,67557.0,67556.0,0.001674]
[1729533635034,0.45629882,67557.0,67538.0,0.2228668]
[1729533635035,0.57390562,67557.0,67528.0,0.005]
[1729533635257,0.57390562,67557.0,67488.0,0.22425368]
[1729533635258,0.268134,67506.0,67505.0,0.059283]
[1729533635482,0.253145,67501.0,67500.0,0.0025]
[1729533635705,0.153145,67501.0,67500.0,0.0025]
[1729533635932,0.005,67501.0,67500.0,0.0025]
[1729533636146,0.16033438,67501.0,67500.0,0.0025]
[1729533636379,0.263145,67501.0,67500.0,0.0025]
[1729533636598,0.41892431,67501.0,67500.0,0.0025]
[1729533637001,0.41210415,67501.0,67500.0,0.0025]
[1729533637245,0.42610415,67501.0,67500.0,0.0025]
[1729533638329,0.41210415,67501.0,67500.0,0.0025]
[1729533638558,0.276145,67501.0,67500.0,0.0025]
[1729533638766,0.290145,67501.0,67500.0,0.0025]
[1729533639193,0.276145,67501.0,67500.0,0.0025]
[1729533639615,0.290145,67501.0,67500.0,0.0025]
[1729533639823,0.276145,67501.0,67500.0,0.0025]
[1729533640031,0.42510415,67501.0,67500.0,0.0025]
[1729533640454,0.42610415,67501.0,67500.0,0.0025]
[1729533641099,0.43910415,67501.0,67500.0,0.0025]
[1729533641362,0.032,67501.0,67500.0,0.0025]
[1729533641809,0.014,67501.0,67500.0,0.0025]
[1729533642017,0.019,67501.0,67500.0,0.0025]
[1729533642271,0.031,67501.0,67500.0,0.0025]
[1729533642731,0.037,67501.0,67500.0,0.0025]
[1729533642949,0.032,67501.0,67500.0,0.0025]
[1729533643162,0.017,67501.0,67500.0,0.0025]
[1729533643375,0.01,67501.0,67500.0,0.0025]
[1729533643584,0.01,67501.0,67500.0,0.1847]
[1729533643797,0.158145,67501.0,67500.0,0.1847]
[1729533644007,0.016,67501.0,67500.0,0.185528]
[1729533644919,0.021,67501.0,67500.0,0.185528]
[1729533645144,0.016,67501.0,67500.0,0.185528]
[1729533645365,0.016,67501.0,67500.0,0.186528]
[1729533645615,0.01,67501.0,67500.0,0.186528]
[1729533646262,0.005,67501.0,67500.0,0.186528]
[1729533646474,0.153145,67501.0,67500.0,0.186528]
[1729533646918,0.153145,67501.0,67500.0,0.187528]
[1729533649721,0.31210415,67501.0,67500.0,0.005328]
[1729533649960,0.41210415,67501.0,67500.0,0.005328]
[1729533650170,0.41210415,67501.0,67496.0,0.000837]
[1729533650171,0.158154,67497.0,67496.0,0.000837]
[1729533651684,0.160154,67497.0,67496.0,0.003837]
[1729533653579,0.002,67497.0,67496.0,0.003837]
[1729533655516,0.001,67497.0,67496.0,0.002837]
[1729533655751,0.005,67504.0,67496.0,0.000837]
[1729533655991,0.001,67497.0,67496.0,0.000837]
[1729533656218,0.22222058,67505.0,67496.0,0.000837]
[1729533656475,0.22222058,67505.0,67496.0,0.0478688]
[1729533656679,0.22222058,67505.0,67497.0,0.023]
[1729533656885,0.005,67504.0,67497.0,0.023]
[1729533657092,0.005,67504.0,67496.0,0.000837]
[1729533657742,0.001,67497.0,67496.0,0.028837]
[1729533658810,0.001,67497.0,67496.0,0.005837]
[1729533659050,0.149154,67497.0,67496.0,0.007837]
[1729533659476,0.38637458,67497.0,67496.0,0.007837]
[1729533659686,0.164154,67497.0,67496.0,0.007837]
[1729533660130,0.45883623,67497.0,67496.0,0.007837]
[1729533661002,0.45983623,67497.0,67496.0,0.012837]
[1729533665226,0.148172,67489.0,67488.0,0.000837]
[1729533665439,0.24672499,67489.0,67488.0,0.000837]
[1729533667252,0.24772499,67489.0,67488.0,0.004837]
[1729533667838,0.24872499,67489.0,67488.0,0.004837]
[1729533668026,0.24772499,67489.0,67488.0,0.004837]
[1729533668284,0.24672499,67489.0,67488.0,0.000837]
[1729533668489,0.24872499,67489.0,67488.0,0.000837]
[1729533669063,0.24772499,67489.0,67488.0,0.000837]
[1729533669296,0.24672499,67489.0,67488.0,0.000837]
[1729533669730,0.24772499,67489.0,67488.0,0.000837]
[1729533669960,0.09455299,67489.0,67488.0,0.000837]
[1729533671988,0.09555299,67489.0,67488.0,0.000837]
[1729533672842,0.09655299,67489.0,67488.0,0.000837]
[1729533674116,0.09555299,67489.0,67488.0,0.000837]
[1729533674328,0.09355299,67489.0,67488.0,0.000837]
[1729533674917,0.09355299,67489.0,67488.0,0.10310005]
[1729533675859,0.09355299,67489.0,67488.0,0.100137]
[1729533676039,0.09455299,67489.0,67488.0,0.100137]
[1729533676465,0.09555299,67489.0,67488.0,0.100137]
[1729533677717,0.09455299,67489.0,67488.0,0.100137]
[1729533678146,0.09555299,67489.0,67488.0,0.100137]
[1729533678354,0.24372499,67489.0,67488.0,0.100137]
[1729533678570,0.09555299,67489.0,67488.0,0.100137]
[1729533678775,0.09455299,67489.0,67488.0,0.100137]
[1729533679222,0.40668414,67489.0,67488.0,0.000837]
[1729533679483,0.40668414,67489.0,67462.0,0.0763]
[1729533679484,0.148229,67463.0,67462.0,0.0763]
[1729533679765,0.04572308,67463.0,67462.0,0.0763]
[1729533680195,0.19395208,67463.0,67462.0,0.0763]
[1729533680397,0.19395208,67463.0,67450.0,0.0176741]
[1729533680398,0.148255,67451.0,67450.0,0.0176741]
[1729533680613,0.19397808,67451.0,67450.0,0.0176741]
[1729533680843,0.04572308,67451.0,67450.0,0.0176741]
[1729533681056,0.1,67471.0,67450.0,0.0989741]
[1729533681057,0.04572308,67453.0,67450.0,0.0989741]
[1729533681283,0.22222058,67451.0,67450.0,0.0989741]
[1729533681521,0.22222058,67460.0,67450.0,0.0989741]
[1729533681739,0.001,67451.0,67450.0,0.0989741]